bitfinex/quotes_SOLUSD_20240612
["timestamp","ask_amount","ask_price","bid_price","bid_amount"]
[1718174556875,10.885,151.33,151.3,2.4453]
[1718174557055,8.44,151.32,151.3,2.4453]
[1718174557362,10.8851,151.32,151.27,6.4596]
[1718174558067,8.44,151.31,151.28,2.4457]
[1718174558771,8.44,151.31,151.29,2.4456]
[1718174559856,8.61,151.32,151.29,2.4456]
[1718174560170,0.17,151.32,151.23,6.5036]
[1718174560371,8.44,151.27,151.24,2.4464]
[1718174560571,8.44,151.27,151.23,6.5036]
[1718174560781,0.17,151.3,151.23,6.5036]
[1718174560967,8.44,151.28,151.23,6.5036]
[1718174561162,8.44,151.28,151.25,2.4462]
[1718174561484,8.44,151.27,151.26,2.446]
[1718174563077,8.44,151.27,151.25,2.4462]
[1718174566282,3.1254,151.3,151.26,2.4461]
[1718174566483,8.44,151.28,151.26,2.4461]
[1718174567581,0.51,151.3,151.28,2.4457]
[1718174567761,8.44,151.29,151.28,2.4457]
[1718174567958,0.17,151.32,151.29,2.4456]
[1718174568162,16.2273,151.33,151.3,2.4454]
[1718174568381,8.44,151.31,151.29,2.4455]
[1718174568584,36.0673,151.33,151.23,6.5036]
[1718174568802,8.44,151.28,151.25,4.8925]
[1718174568965,8.44,151.29,151.26,2.446]
[1718174569662,8.44,151.28,151.25,2.4461]
[1718174570357,8.44,151.28,151.26,2.4461]
[1718174571783,8.44,151.28,151.27,2.4459]
[1718174574589,8.44,151.28,151.26,2.446]
[1718174575161,8.44,151.28,151.27,2.4459]
[1718174575889,8.44,151.28,151.26,2.446]
[1718174576262,8.44,151.27,151.22,15.9643]
[1718174576460,8.44,151.25,151.21,4.8937]
[1718174576661,8.44,151.26,151.24,2.4464]
[1718174576862,8.44,151.26,151.25,2.4462]
[1718174577069,0.51,151.28,151.26,2.446]
[1718174577281,8.44,151.27,151.26,2.446]
[1718174580883,0.17,151.28,151.27,2.4459]
[1718174581082,0.17,151.29,151.27,2.4459]
[1718174581288,0.51,151.29,151.27,2.4459]
[1718174581786,254.8,151.35,151.29,4.8911]
[1718174581976,8.44,151.34,151.29,4.8911]
[1718174582173,14.5247684,151.39,151.31,21.1471]
[1718174582174,0.8573684,151.39,151.31,21.1471]
[1718174582390,0.8573684,151.39,151.34,13.3296]
[1718174582591,0.8573684,151.39,151.38,2.4441]
[1718174582798,0.8573684,151.39,151.37,2.4443]
[1718174583367,0.8573684,151.39,151.31,30.9279]
[1718174583578,0.8573684,151.39,151.36,2.4444]
[1718174583779,9.2973684,151.39,151.36,2.4444]
[1718174584080,0.8573684,151.39,151.36,2.4444]
[1718174584666,0.8573684,151.39,151.37,2.4443]
[1718174585885,0.8573684,151.39,151.38,2.4441]
[1718174587483,0.8573684,151.39,151.37,2.4442]
[1718174588505,0.8573684,151.39,151.38,2.4441]
[1718174589203,0.8573684,151.39,151.37,2.4442]
[1718174590389,0.8573684,151.39,151.38,2.4441]
[1718174590714,0.8573684,151.39,151.37,2.4443]
[1718174590898,0.8573684,151.39,151.38,2.4441]
[1718174594612,0.8573684,151.39,151.38,10.8841]
[1718174599301,0.8573684,151.39,151.38,68.6886]
[1718174601399,0.8573684,151.39,151.38,2.4441]
[1718174601595,0.8573684,151.39,151.38,7.3324]
[1718174601811,0.8573684,151.39,151.38,23.1049]
[1718174603816,0.8573684,151.39,151.38,15.7724]
[1718174607018,0.8573684,151.39,151.38,23.1049]
[1718174607797,0.8573684,151.39,151.38,32.8816]
[1718174610120,0.8573684,151.39,151.38,17.1091]
[1718174610328,0.8573684,151.39,151.38,25.5491]
[1718174610531,0.8573684,151.39,151.38,17.1091]
[1718174610694,0.8573684,151.39,151.38,24.4416]
[1718174611107,0.8573684,151.39,151.38,32.8816]
[1718174617116,0.8573684,151.39,151.38,52.8816]
[1718174625553,0.8573684,151.39,151.38,44.4416]
[1718174625718,0.8573684,151.39,151.38,52.8816]
[1718174629151,6.84e-05,151.39,151.38,52.8816]
[1718174629652,6.84e-05,151.39,151.38,53.5616]
[1718174631627,6.84e-05,151.39,151.38,52.8816]
[1718174638953,6.84e-05,151.39,151.38,53.0516]
[1718174639151,6.84e-05,151.39,151.38,53.5616]
[1718174640243,0.8573684,151.54,151.41,22.7613]
[1718174640445,0.8573684,151.54,151.53,2.4417]
[1718174641184,0.8573684,151.54,151.52,2.4418]
[1718174641476,15.1388,151.53,151.52,2.4418]
[1718174641644,0.8573684,151.54,151.53,2.4417]
[1718174643583,0.8573684,151.54,151.48,4.885]
[1718174643786,11.0517,151.53,151.49,2.4423]
[1718174644071,11.0517,151.53,151.47,20.0]
[1718174644072,8.61,151.53,151.47,8.44]
[1718174644247,8.61,151.53,151.44,4.8863]
[1718174644248,10.8821,151.51,151.44,4.8863]
[1718174644449,16.8979,151.52,151.44,4.8863]
[1718174644450,19.3398,151.52,151.48,2.4424]
[1718174644665,8.44,151.51,151.48,2.4424]
[1718174644853,8.44,151.51,151.49,2.4424]
[1718174645448,8.44,151.51,151.45,13.326]
[1718174645449,2.4424,151.49,151.45,2.4429]
[1718174646072,10.8824,151.49,151.45,2.4429]
[1718174646256,0.34,151.5,151.46,2.4428]
[1718174646257,8.44,151.48,151.46,2.4428]
[1718174647865,2.4424,151.49,151.45,2.4429]
[1718174648065,8.44,151.47,151.45,2.4429]
[1718174649301,8.44,151.46,151.45,2.4429]
[1718174651290,8.44,151.46,151.44,2.4431]
[1718174652300,8.44,151.46,151.45,2.443]
[1718174653685,0.17,151.45,151.39,21.9948]
[1718174653888,0.17,151.45,151.42,2.4434]
[1718174653889,8.61,151.45,151.42,2.4434]
[1718174654480,8.44,151.44,151.42,2.4434]
[1718174654783,8.44,151.44,151.43,2.4433]
[1718174657776,8.44,151.44,151.42,2.4434]
[1718174658111,8.44,151.44,151.4,4.8876]
[1718174658112,8.44,151.44,151.41,2.4436]
[1718174658302,8.44,151.42,151.38,4.8882]
[1718174658483,8.44,151.42,151.4,2.4437]
[1718174658875,8.44,151.42,151.39,2.4439]
[1718174659080,8.44,151.41,151.39,2.444]
[1718174659674,23.9686,151.42,151.38,12.2206]
[1718174659874,23.9686,151.42,151.38,4.8882]
[1718174660099,23.9686,151.42,151.4,2.4437]
[1718174660684,24.1386,151.42,151.41,2.4436]
[1718174660881,24.3086,151.42,151.37,7.3329]
[1718174661087,8.44,151.41,151.39,2.4439]
[1718174661802,8.44,151.41,151.4,2.4438]
[1718174662104,24.3086,151.42,151.4,2.4438]
[1718174662613,8.44,151.41,151.39,2.4439]
[1718174662820,24.3086,151.42,151.39,2.4439]
[1718174662983,8.44,151.41,151.39,2.4439]
[1718174671340,8.44,151.41,151.35,18.218]
[1718174671341,0.17,151.4,151.38,2.4441]
[1718174671503,0.68,151.4,151.38,2.4441]
[1718174672319,0.68,151.4,151.39,2.444]
[1718174674630,0.68,151.4,151.37,2.4441]
[1718174674817,9.12,151.4,151.38,2.4441]
[1718174675920,9.12,151.4,151.39,2.444]
[1718174676228,0.51,151.4,151.39,2.444]
[1718174676424,0.17,151.41,151.39,2.444]
[1718174676631,9.12,151.41,151.39,2.444]
[1718174680333,0.34,151.41,151.4,2.4438]
[1718174680514,15.5286,151.42,151.4,2.4438]
[1718174681128,9.12,151.43,151.39,2.4439]
[1718174681327,0.51,151.42,151.39,2.4439]
[1718174682617,2.9535,151.42,151.38,2.4441]
[1718174682818,0.51,151.42,151.38,2.4441]
[1718174683113,8.95,151.42,151.38,2.4441]
[1718174684234,8.95,151.42,151.39,2.4439]
[1718174685619,8.95,151.42,151.38,2.444]
[1718174685824,8.95,151.42,151.39,2.4439]
[1718174688329,11.3935,151.42,151.38,2.4441]
[1718174689826,2.4437,151.41,151.37,2.4442]
[1718174690020,11.3936,151.42,151.37,2.4442]
[1718174690336,8.95,151.42,151.37,2.4442]
[1718174690538,11.3936,151.42,151.37,2.4442]
[1718174690746,2.4439,151.4,151.36,2.4444]
[1718174691213,11.0537,151.41,151.36,2.4444]
[1718174691631,8.44,151.4,151.34,17.6954]
[1718174691825,8.44,151.39,151.36,2.4443]
[1718174692246,8.44,151.39,151.37,2.4443]
[1718174693856,8.44,151.4,151.37,2.4443]
[1718174695337,8.44,151.4,151.38,2.4441]
[1718174695544,8.44,151.4,151.37,2.4442]
[1718174697054,8.44,151.4,151.38,2.4441]
[1718174699532,8.44,151.4,151.37,2.4442]
[1718174700152,8.44,151.4,151.38,2.4441]
[1718174700326,0.17,151.39,151.33,11.4815]
[1718174700527,8.44,151.38,151.35,2.4445]
[1718174703336,0.17,151.37,151.34,2.4447]
[1718174703535,9.12,151.37,151.34,2.4447]
[1718174705152,8.44,151.35,151.29,11.5387]
[1718174705463,8.44,151.35,151.33,2.4449]
[1718174706342,9.12,151.37,151.34,2.4448]
[1718174706535,8.44,151.36,151.35,2.4446]
[1718174706745,16.3591,151.45,151.35,8.44]
[1718174706965,16.3591,151.45,151.42,2.4434]
[1718174707142,16.3591,151.45,151.38,20.6606]
[1718174707143,24.7991,151.45,151.39,8.44]
[1718174707547,27.2422,151.45,151.39,8.44]
[1718174707756,10.8832,151.44,151.4,2.4437]
[1718174708650,8.44,151.42,151.38,2.444]
[1718174709258,8.44,151.42,151.39,2.4439]
[1718174710155,8.44,151.42,151.38,2.4441]
[1718174711763,8.44,151.41,151.38,2.4441]
[1718174712078,8.44,151.41,151.39,2.4439]
[1718174712236,16.3591,151.45,151.41,2.4436]
[1718174712443,8.78,151.44,151.41,2.4436]
[1718174713339,16.6991,151.45,151.42,2.4434]
[1718174713547,25.1391,151.45,151.42,2.4434]
[1718174713966,8.44,151.46,151.43,2.4433]
[1718174714154,8.44,151.47,151.43,2.4433]
[1718174714466,10.8826,151.48,151.43,2.4433]
[1718174714963,27.4016,151.49,151.45,2.443]
[1718174715149,16.0466,151.53,151.44,8.44]
[1718174715352,16.0466,151.53,151.42,28.3372]
[1718174715353,10.8821,151.51,151.46,2.4427]
[1718174715763,2.4421,151.51,151.47,2.4427]
[1718174715967,2.4419,151.52,151.47,2.4427]
[1718174716145,10.882,151.51,151.47,2.4427]
[1718174716344,0.17,151.5,151.47,2.4427]
[1718174716566,0.51,151.5,151.42,21.0068]
[1718174716767,10.8824,151.49,151.44,2.4431]
[1718174717040,2.7825,151.48,151.44,2.4431]
[1718174717466,11.2225,151.48,151.44,2.4431]
[1718174717646,2.6128,151.47,151.42,8.44]
[1718174717850,8.44,151.46,151.4,19.6692]
[1718174718049,10.8828,151.46,151.42,2.4434]
[1718174718365,0.17,151.45,151.4,6.3417]
[1718174718547,8.44,151.43,151.38,24.0738]
[1718174718865,8.44,151.43,151.39,2.4439]
[1718174719069,8.44,151.43,151.4,2.4438]
[1718174719604,8.78,151.42,151.38,2.444]
[1718174720656,8.44,151.4,151.37,2.4442]
[1718174721345,8.44,151.4,151.34,15.6585]
[1718174721572,8.44,151.37,151.34,2.4447]
[1718174722071,9.12,151.36,151.32,2.445]
[1718174722254,9.12,151.36,151.33,2.4449]
[1718174722648,9.12,151.36,151.32,2.445]
[1718174722864,0.68,151.36,151.32,2.445]
[1718174723478,0.68,151.36,151.33,2.4449]
[1718174724083,20.4887,151.41,151.36,2.4444]
[1718174724084,0.17,151.4,151.36,2.4444]
[1718174724283,0.68,151.4,151.36,2.4444]
[1718174725679,3.1238,151.4,151.35,2.4446]
[1718174725881,2.4442,151.38,151.33,2.4449]
[1718174726182,0.17,151.37,151.3,27.3363]
[1718174726382,0.17,151.37,151.34,2.4447]
[1718174727099,0.17,151.37,151.35,2.4446]
[1718174727391,0.17,151.38,151.36,2.4444]
[1718174727557,2.6139,151.4,151.35,2.4446]
[1718174727758,0.51,151.39,151.35,2.4446]
[1718174728183,0.51,151.39,151.36,2.4444]
[1718174728357,0.17,151.4,151.37,2.4442]
[1718174728559,0.51,151.4,151.38,2.4441]
[1718174729488,0.51,151.4,151.37,2.4442]
[1718174730467,18.0448,151.41,151.37,2.4442]
[1718174730764,18.0448,151.41,151.36,2.4444]
[1718174731374,15.6012,151.41,151.34,7.3344]
[1718174731577,0.51,151.4,151.36,2.4443]
[1718174731769,0.17,151.4,151.37,2.4442]
[1718174731958,18.0449,151.41,151.37,2.4442]
[1718174732460,0.17,151.4,151.32,15.7864]
[1718174732767,2.4442,151.38,151.32,15.7864]
[1718174732970,2.4443,151.37,151.33,2.4449]
[1718174733378,2.4443,151.37,151.32,2.445]
[1718174733886,2.4443,151.37,151.33,2.4449]
[1718174734182,0.17,151.36,151.32,2.445]
[1718174734394,0.68,151.36,151.32,2.445]
[1718174734764,2.444,151.39,151.31,12.2264]
[1718174734970,0.34,151.38,151.34,2.4446]
[1718174735168,0.51,151.38,151.35,2.4446]
[1718174735387,0.34,151.39,151.35,2.4446]
[1718174735586,2.784,151.39,151.35,2.4446]
[1718174735988,0.34,151.39,151.35,2.4446]
[1718174736185,0.34,151.39,151.36,2.4444]
[1718174737180,2.7839,151.4,151.36,2.4444]
[1718174737496,0.34,151.4,151.36,2.4444]
[1718174737676,0.34,151.4,151.37,2.4443]
[1718174737884,15.9412,151.41,151.38,2.4441]
[1718174738082,15.9412,151.41,151.37,2.4442]
[1718174738268,15.9412,151.41,151.38,2.4441]
[1718174738480,15.9412,151.41,151.34,9.7792]
[1718174738699,15.9412,151.41,151.35,2.4445]
[1718174738904,2.4439,151.4,151.35,2.4445]
[1718174739312,2.784,151.39,151.33,20.0]
[1718174739609,2.784,151.39,151.32,24.89]
[1718174739983,2.784,151.39,151.34,2.4448]
[1718174740184,2.784,151.39,151.35,2.4446]
[1718174740384,0.34,151.39,151.35,2.4446]
[1718174740609,0.34,151.39,151.36,2.4444]
[1718174745698,15.6012,151.41,151.38,2.4441]
[1718174746031,15.6012,151.41,151.39,2.4439]
[1718174746201,15.6012,151.41,151.38,2.4441]
[1718174746527,18.0449,151.41,151.37,2.4443]
[1718174746827,15.6012,151.41,151.38,2.444]
[1718174747017,15.6012,151.41,151.36,4.8889]
[1718174747516,15.6012,151.41,151.37,2.4442]
[1718174747706,15.6012,151.41,151.38,2.4441]
[1718174748610,0.34,151.4,151.34,4.8894]
[1718174748921,2.7838,151.4,151.36,2.4444]
[1718174749119,0.34,151.4,151.37,2.4443]
[1718174749301,15.6012,151.41,151.35,4.8891]
[1718174749712,15.6012,151.41,151.38,2.4441]
[1718174751020,18.0449,151.41,151.37,2.4442]
[1718174754827,26.4249,151.41,151.37,2.4442]
[1718174756322,2.6138,151.4,151.36,2.4444]
[1718174756626,0.17,151.38,151.34,8.38]
[1718174756830,0.34,151.38,151.36,2.4444]
[1718174758613,0.34,151.38,151.31,14.6714]
[1718174758811,0.17,151.36,151.28,21.8879]
[1718174759044,11.1645,151.36,151.32,2.4451]
[1718174759326,11.5045,151.36,151.32,2.4451]
[1718174759632,9.06,151.36,151.32,2.4451]
[1718174759836,8.89,151.36,151.3,8.38]
[1718174760022,8.38,151.37,151.35,2.4446]
[1718174760333,8.38,151.37,151.34,2.4447]
[1718174760646,9.06,151.36,151.33,2.4449]
[1718174760845,0.51,151.36,151.33,2.4449]
[1718174761818,0.51,151.36,151.28,21.8879]
[1718174761819,8.55,151.35,151.29,13.2712]
[1718174762145,8.55,151.35,151.31,2.4452]
[1718174762443,8.55,151.35,151.32,2.4451]
[1718174762637,0.17,151.35,151.32,2.4451]
[1718174763664,8.55,151.35,151.32,2.4451]
[1718174764151,23.8048,151.35,151.31,2.4452]
[1718174764352,15.4248,151.35,151.32,2.4451]
[1718174764543,23.8048,151.35,151.32,2.4451]
[1718174765157,15.4248,151.35,151.33,2.4449]
[1718174765357,15.4248,151.35,151.31,7.3358]
[1718174765551,15.2548,151.35,151.34,2.4448]
[1718174767323,15.2548,151.35,151.33,2.4449]
[1718174767529,8.38,151.37,151.31,25.4968]
[1718174767724,0.17,151.37,151.33,2.4448]
[1718174767929,9.06,151.37,151.33,2.4448]
[1718174768343,11.5043,151.37,151.33,2.4448]
[1718174768543,8.38,151.36,151.28,14.674]
[1718174768747,11.3346,151.35,151.31,2.4452]
[1718174768956,0.17,151.35,151.32,2.4451]
[1718174769161,9.06,151.35,151.32,2.4451]
[1718174770067,11.5046,151.35,151.31,2.4452]
[1718174770367,3.1246,151.35,151.31,2.4452]
[1718174770532,8.38,151.33,151.3,2.4454]
[1718174771754,8.38,151.33,151.27,20.6095]
[1718174771755,0.17,151.32,151.29,2.4455]
[1718174771960,9.06,151.32,151.29,2.4455]
[1718174772760,9.06,151.32,151.28,2.4457]
[1718174773740,8.38,151.31,151.28,2.4457]
[1718174775056,8.89,151.3,151.27,2.4458]
[1718174775241,2.6159,151.27,151.26,6.613]
[1718174775441,3.1259,151.27,151.26,6.613]
[1718174775647,11.5059,151.27,151.26,6.613]
[1718174776246,0.17,151.26,151.24,6.613]
[1718174776453,9.06,151.26,151.24,6.613]
[1718174777052,15.1319,151.28,151.26,6.613]
[1718174777250,15.1319,151.28,151.26,9.0591]
[1718174777459,0.68,151.29,151.26,9.0591]
[1718174777770,0.34,151.28,151.26,9.0591]
[1718174778066,0.17,151.31,151.28,2.4457]
[1718174778268,0.17,151.3,151.28,2.4457]
[1718174778451,0.34,151.3,151.28,2.4457]
[1718174778866,0.34,151.3,151.27,2.4458]
[1718174779166,2.7854,151.3,151.26,9.059]
[1718174779381,2.6156,151.29,151.26,6.613]
[1718174779749,2.6156,151.29,151.25,2.4461]
[1718174779951,0.17,151.27,151.21,31.2577]
[1718174780176,0.51,151.27,151.24,2.4463]
[1718174780671,0.17,151.26,151.23,2.4465]
[1718174781082,0.17,151.25,151.22,2.4467]
[1718174782077,0.34,151.26,151.22,2.4467]
[1718174783374,0.17,151.24,151.2,2.4469]
[1718174783566,2.9564,151.24,151.2,2.4469]
[1718174783762,0.51,151.24,151.21,2.4469]
[1718174783970,0.34,151.24,151.22,2.4467]
[1718174784561,0.34,151.24,151.21,2.4468]
[1718174784859,0.34,151.24,151.22,2.4467]
[1718174785380,0.34,151.24,151.21,2.4468]
[1718174785782,15.5141,151.25,151.22,2.4466]
[1718174786083,15.5141,151.25,151.22,2.4467]
[1718174787265,0.17,151.24,151.2,2.447]
[1718174787474,0.17,151.24,151.19,9.0491]
[1718174787475,2.9565,151.24,151.19,9.0491]
[1718174787672,0.17,151.23,151.19,9.0491]
[1718174787971,0.51,151.23,151.19,9.0491]
[1718174788580,0.51,151.23,151.2,2.447]
[1718174791587,0.17,151.22,151.19,9.0492]
[1718174791782,0.51,151.22,151.2,2.447]
[1718174794185,15.1741,151.25,151.19,6.602]
[1718174794406,15.1741,151.25,151.22,2.4466]
[1718174794715,15.1741,151.25,151.21,2.4468]
[1718174795469,0.34,151.24,151.21,2.4468]
[1718174795663,0.34,151.24,151.22,2.4467]
[1718174796595,0.34,151.23,151.19,11.4963]
[1718174796890,0.34,151.24,151.19,12.15262083]
[1718174797394,0.34,151.24,151.22,2.4466]
[1718174798508,0.17,151.23,151.2,2.4469]
[1718174798680,0.34,151.23,151.2,2.4469]
[1718174800381,0.34,151.24,151.21,2.4468]
[1718174800884,0.34,151.24,151.22,2.4467]
[1718174801406,0.51,151.25,151.24,2.4464]
[1718174801606,0.34,151.25,151.23,2.4465]
[1718174801903,0.17,151.25,151.23,2.4465]
[1718174802312,0.34,151.26,151.23,2.4465]
[1718174802517,0.34,151.26,151.22,10.8466]
[1718174802693,0.34,151.26,151.22,2.4466]
[1718174803306,2.7861,151.26,151.22,2.4466]
[1718174803609,0.17,151.23,151.2,2.4469]
[1718174804711,0.17,151.24,151.2,2.4469]
[1718174805004,0.34,151.24,151.2,2.4469]
[1718174805487,0.17,151.23,151.2,2.4469]
[1718174805688,0.34,151.23,151.2,2.4469]
[1718174807984,0.34,151.23,151.21,2.4469]
[1718174809411,0.17,151.22,151.2,2.447]
[1718174809596,0.34,151.22,151.2,2.447]
[1718174809788,0.34,151.22,151.21,2.4469]
[1718174809995,0.17,151.22,151.21,2.4469]
[1718174810193,0.17,151.23,151.21,2.4469]
[1718174810398,0.34,151.23,151.21,2.4469]
[1718174810604,0.17,151.23,151.21,2.4469]
[1718174811689,0.17,151.23,151.2,2.447]
[1718174815231,0.17,151.23,151.19,2.4471]
[1718174815439,0.17,151.22,151.19,2.4471]
[1718174815616,0.68,151.22,151.19,2.4471]
[1718174816115,0.68,151.22,151.2,2.447]
[1718174816420,0.68,151.22,151.19,2.4471]
[1718174817970,0.68,151.22,151.2,2.447]
[1718174818648,0.68,151.22,151.19,2.4472]
[1718174818842,0.68,151.22,151.18,2.4473]
[1718174819048,2.6171,151.2,151.13,31.5547]
[1718174819286,0.34,151.19,151.17,2.4475]
[1718174819655,0.34,151.19,151.15,13.2957]
[1718174819656,0.34,151.19,151.18,2.4474]
[1718174819857,0.17,151.2,151.18,2.4474]
[1718174820049,0.68,151.2,151.18,2.4474]
[1718174820247,0.34,151.2,151.16,4.8953]
[1718174820453,0.34,151.21,151.14,37.1357]
[1718174820768,0.34,151.2,151.17,2.4475]
[1718174820991,0.34,151.2,151.18,2.4473]
[1718174821659,0.34,151.2,151.17,2.4475]
[1718174822050,2.6173,151.19,151.12,6.602]
[1718174822262,0.17,151.17,151.14,2.448]
[1718174822463,8.74,151.17,151.12,6.602]
[1718174822778,0.17,151.16,151.13,2.4481]
[1718174822943,0.34,151.16,151.14,2.448]
[1718174823148,0.51,151.16,151.15,2.4478]
[1718174823348,0.68,151.16,151.15,2.4478]
[1718174824048,15.634,151.18,151.16,2.4477]
[1718174824247,0.68,151.19,151.17,2.4475]
[1718174825055,0.68,151.19,151.16,2.4476]
[1718174826961,0.68,151.19,151.15,2.4478]
[1718174828191,0.68,151.19,151.16,2.4477]
[1718174830605,0.68,151.19,151.15,2.4478]
[1718174830893,0.68,151.19,151.16,2.4477]
[1718174833186,0.68,151.19,151.15,2.4478]
[1718174833401,0.68,151.19,151.16,2.4476]
[1718174834398,0.51,151.19,151.18,2.4474]
[1718174834566,18.0763,151.22,151.18,2.4474]
[1718174834772,0.17,151.21,151.18,2.4474]
[1718174836383,15.6296,151.22,151.18,2.4473]
[1718174837807,0.17,151.22,151.19,2.4472]
[1718174838004,0.68,151.22,151.19,2.4472]
[1718174838671,0.68,151.22,151.17,4.8951]
[1718174838672,0.68,151.22,151.17,8.4]
[1718174838872,2.4469,151.21,151.17,10.8474]
[1718174839100,0.17,151.2,151.17,10.8474]
[1718174839391,0.51,151.21,151.18,2.4473]
[1718174839596,0.17,151.21,151.18,2.4473]
[1718174839771,0.34,151.21,151.18,10.8473]
[1718174839973,0.34,151.21,151.17,2.4474]
[1718174840203,2.7871,151.2,151.16,2.4476]
[1718174841608,2.6173,151.19,151.15,2.4478]
[1718174841782,0.17,151.17,151.15,2.4478]
[1718174842099,0.34,151.17,151.16,2.4477]
[1718174842288,0.51,151.17,151.16,2.4477]
[1718174842682,0.51,151.17,151.15,10.8478]
[1718174843003,0.51,151.17,151.16,2.4477]
[1718174843394,0.51,151.17,151.12,6.602]
[1718174843711,0.51,151.17,151.15,2.4478]
[1718174844208,0.51,151.17,151.16,2.4477]
[1718174845116,0.68,151.17,151.13,2.4481]
[1718174845403,0.34,151.16,151.14,2.448]
[1718174846203,0.17,151.16,151.15,2.4478]
[1718174846495,0.17,151.17,151.14,2.4479]
[1718174846710,0.34,151.16,151.13,2.4481]
[1718174847213,0.34,151.16,151.14,2.448]
[1718174848702,2.7879,151.15,151.11,9.0504]
[1718174848876,0.51,151.14,151.12,9.0503]
[1718174849505,0.51,151.14,151.12,6.602]
[1718174849807,0.34,151.13,151.11,6.602]
[1718174850019,0.34,151.13,151.11,9.0505]
[1718174850308,0.34,151.13,151.11,6.602]
[1718174850517,0.34,151.13,151.11,9.0505]
[1718174853005,0.51,151.12,151.11,6.602]
[1718174853314,0.68,151.12,151.11,6.602]
[1718174853709,9.08,151.12,151.11,6.602]
[1718174854906,9.08,151.12,151.09,6.602]
[1718174855218,9.08,151.12,151.11,6.602]
[1718174856111,9.08,151.12,151.09,6.602]
[1718174856417,8.74,151.11,151.09,6.602]
[1718174856721,22.8187,151.1,151.03,14.9459]
[1718174856919,0.17,151.09,151.06,2.4492]
[1718174857097,0.34,151.09,151.04,4.8993]
[1718174857409,0.17,151.08,151.06,2.4492]
[1718174858497,0.51,151.08,151.03,6.5459]
[1718174858810,0.51,151.08,151.05,2.4494]
[1718174859119,0.51,151.08,151.06,2.4493]
[1718174859332,0.51,151.08,151.05,2.4494]
[1718174859333,0.17,151.07,151.05,2.4494]
[1718174859490,0.51,151.07,151.04,2.4496]
[1718174860325,0.51,151.07,151.05,2.4494]
[1718174860496,0.51,151.07,151.06,2.4493]
[1718174860707,0.68,151.07,151.06,2.4493]
[1718174860897,17.661,151.12,151.07,2.4491]
[1718174861099,0.17,151.11,151.08,2.449]
[1718174862219,0.34,151.11,151.08,2.449]
[1718174862429,0.34,151.1,151.08,2.449]
[1718174863432,0.34,151.1,151.07,10.8491]
[1718174863615,0.17,151.09,151.06,10.8492]
[1718174864237,0.17,151.09,151.07,2.4491]
[1718174866624,0.34,151.09,151.05,2.4494]
[1718174866803,0.34,151.08,151.05,2.4494]
[1718174867004,0.34,151.08,151.06,2.4493]
[1718174869519,0.34,151.09,151.07,2.4491]
[1718174869718,0.51,151.1,151.07,2.4491]